bitfinex-derivatives/quotes_ETHF0:USTF0_20250614
["timestamp","ask_amount","ask_price","bid_price","bid_amount"]
[1749914334271,0.79081,2527.9,2527.8,9.4418]
[1749914334472,0.79081,2527.9,2527.8,33.5528]
[1749914335268,0.00593577,2528.1,2528.0,0.79078]
[1749914335771,1.97634,2528.8,2528.4,0.79063]
[1749914336075,0.79059,2528.6,2528.5,4.5233]
[1749914336667,0.00591587,2528.8,2528.5,4.5233]
[1749914337161,0.79059,2528.6,2528.5,4.5233]
[1749914339569,0.00591587,2528.8,2528.7,0.79056]
[1749914339873,0.00591587,2528.8,2528.7,31.16156]
[1749914340074,0.79037,2529.3,2529.2,0.79037]
[1749914340382,0.79037,2529.3,2529.2,33.5918]
[1749914340875,0.79037,2529.3,2529.2,34.38219]
[1749914341172,9.4418,2529.9,2529.2,38.5918]
[1749914341375,0.79037,2529.3,2529.2,34.38219]
[1749914341575,0.79037,2529.3,2529.2,33.5918]
[1749914341779,0.79037,2529.3,2529.2,33.5958]
[1749914341969,0.7904,2529.2,2529.1,0.65]
[1749914342166,0.7904,2529.2,2529.1,24.803]
[1749914342475,0.7904,2529.2,2529.1,25.59343]
[1749914343377,0.7904,2529.2,2529.1,24.803]
[1749914343878,1.8826,2529.7,2529.3,0.79036]
[1749914344070,0.79035,2529.4,2529.3,3.2078]
[1749914347067,0.79035,2529.4,2529.3,27.3818]
[1749914347772,0.79035,2529.4,2529.3,28.17217]
[1749914348171,0.79035,2529.4,2529.3,27.3818]
[1749914348683,0.79035,2529.4,2529.3,24.174]
[1749914351376,0.7904,2529.2,2529.1,7.70642]
[1749914351582,0.7904,2529.2,2529.1,31.86542]
[1749914353176,0.79036,2529.4,2529.3,0.79034]
[1749914353479,0.79036,2529.4,2529.3,3.99815]
[1749914353480,0.79034,2529.4,2529.3,3.99815]
[1749914356483,0.79032,2529.5,2529.4,0.7903]
[1749914356684,0.79032,2529.5,2529.4,25.6024]
[1749914358384,0.79032,2529.5,2529.4,24.8121]
[1749914359488,0.79032,2529.5,2529.4,25.60244]
[1749914359785,0.79032,2529.5,2529.4,24.8121]
[1749914360484,0.79032,2529.5,2529.4,25.60244]
[1749914360878,0.79032,2529.5,2529.4,24.8121]
[1749914363796,0.79032,2529.5,2529.4,25.60244]
[1749914364701,0.79032,2529.5,2529.4,24.7831]
[1749914366798,0.79032,2529.5,2529.4,24.125]
[1749914367594,2.12982,2529.5,2529.4,24.125]
[1749914368396,3.1544981,2529.5,2529.4,24.125]
[1749914368803,3.1544981,2529.5,2529.4,24.91534]
[1749914369198,3.1544981,2529.5,2529.4,24.125]
[1749914370507,3.1544981,2529.5,2529.4,24.91534]
[1749914370806,3.1544981,2529.5,2529.4,24.125]
[1749914375406,3.1544981,2529.5,2529.4,24.91534]
[1749914375607,3.1544981,2529.5,2529.4,24.125]
[1749914377519,0.79034,2529.4,2529.3,9.4728]
[1749914377721,0.79034,2529.4,2529.3,33.5538]
[1749914379221,0.79034,2529.4,2529.3,34.34417]
[1749914379923,0.79034,2529.4,2529.3,33.5538]
[1749914381322,1.82050243,2529.4,2529.3,33.5538]
[1749914381616,0.79034,2529.4,2529.3,33.5538]
[1749914381823,1.82057556,2529.4,2529.3,33.5538]
[1749914382012,3.00611556,2529.4,2529.0,3.21373577]
[1749914382213,0.79043,2529.1,2529.0,0.00593577]
[1749914382417,1.82066556,2529.1,2529.0,24.10093577]
[1749914382812,1.82066556,2529.1,2529.0,0.00593577]
[1749914383124,2.48146556,2529.1,2529.0,0.00593577]
[1749914383810,0.79062,2528.5,2528.4,3.2078]
[1749914384015,0.79075,2528.1,2528.0,3.2078]
[1749914384312,0.79075,2528.1,2528.0,27.3168]
[1749914385410,0.00593577,2528.3,2528.0,27.3168]
[1749914385613,0.79074,2528.2,2528.1,0.79073]
[1749914385823,0.79074,2528.1,2528.0,27.3168]
[1749914386522,0.79074,2528.1,2528.0,27.3388]
[1749914387523,0.79074,2528.1,2528.0,28.12958]
[1749914387725,0.79074,2528.1,2528.0,27.3388]
[1749914388127,0.79074,2528.1,2528.0,28.12958]
[1749914388330,0.79074,2528.2,2528.1,0.79073]
[1749914390114,0.00593577,2528.3,2528.0,27.3388]
[1749914390318,0.79663577,2528.3,2528.2,0.79071]
[1749914390527,0.79663577,2528.3,2528.2,24.92871]
[1749914390826,0.00593577,2528.3,2528.2,24.92871]
[1749914391228,3.2078,2529.1,2528.3,1.9767]
[1749914391425,0.79052,2528.9,2528.8,0.79051]
[1749914392123,0.79053,2528.8,2528.7,28.13833]
[1749914392324,0.79051,2528.9,2528.8,0.79053]
[1749914393727,0.79053,2528.8,2528.7,28.13834]
[1749914394123,2.61375,2529.2,2528.7,27.3478]
[1749914394324,0.6613,2529.0,2528.7,27.3478]
[1749914394524,1.3101,2528.9,2528.7,27.3478]
[1749914395222,0.79053,2528.8,2528.7,28.13835]
[1749914396530,0.79053,2528.8,2528.7,24.93055]
[1749914396723,1.3101,2528.9,2528.8,0.79053]
[1749914396924,0.79041,2529.2,2529.1,0.79043]
[1749914397625,0.79043,2529.1,2529.0,28.13724]
[1749914399129,0.79043,2529.1,2529.0,27.3468]
[1749914400524,0.79043,2529.1,2529.0,28.13726]
[1749914401930,0.79043,2529.1,2529.0,27.3468]
[1749914402431,0.79043,2529.1,2529.0,28.13726]
[1749914403532,0.79043,2529.1,2529.0,27.3468]
[1749914403728,0.79043,2529.1,2529.0,24.139]
[1749914403936,0.79043,2529.1,2529.0,28.13726]
[1749914405236,0.79043,2529.1,2529.0,27.3468]
[1749914406234,0.79043,2529.1,2529.0,28.13726]
[1749914406528,0.79043,2529.1,2529.0,3.2078]
[1749914406723,0.79049,2528.9,2528.8,24.109]
[1749914407337,2.11149,2528.9,2528.8,24.109]
[1749914415336,0.79049,2528.9,2528.8,24.89953]
[1749914415641,0.79049,2528.9,2528.8,24.109]
[1749914417741,0.79049,2528.9,2528.8,24.89953]
[1749914418643,0.79049,2528.9,2528.8,24.109]
[1749914419443,0.79049,2528.9,2528.8,24.89953]
[1749914420943,2.04653,2529.1,2529.0,0.79046]
[1749914421441,0.79043,2529.1,2529.0,0.79046]
[1749914422345,0.79046,2529.0,2528.9,5.31718]
[1749914423239,0.79046,2529.0,2528.9,4.5267]
[1749914423436,0.79046,2529.0,2528.9,3.2078]
[1749914423636,0.79056,2528.7,2528.6,27.2928]
[1749914423837,0.79056,2528.7,2528.6,28.08339]
[1749914426842,0.79052,2528.9,2528.8,0.79053]
[1749914427048,1.9404,2529.2,2528.8,0.79053]
[1749914427240,1.81945315,2529.1,2529.0,0.79046]
[1749914427441,0.79046,2529.1,2529.0,0.79046]
[1749914427839,2.73082,2529.2,2529.1,0.79043]
[1749914428051,1.68302166,2529.2,2529.0,0.79044]
[1749914428251,0.79046,2529.1,2529.0,0.79044]
[1749914428449,1.44431,2529.2,2529.1,0.79043]
[1749914429355,0.79046,2529.1,2529.0,0.79044]
[1749914431651,1.44432,2529.2,2529.1,0.79043]
[1749914432156,0.79042,2529.2,2529.1,0.79043]
[1749914432358,0.79039,2529.3,2529.2,0.79037]
[1749914432557,0.79039,2529.3,2529.2,24.87337]
[1749914436460,0.79039,2529.3,2529.2,24.083]
[1749914437359,0.79039,2529.3,2529.2,24.8734]
[1749914440552,1.43513,2529.5,2529.4,0.79034]
[1749914443563,0.79034,2529.4,2529.3,2.08285]
[1749914443860,0.6448,2529.5,2529.2,9.41173577]
[1749914443861,0.79037,2529.3,2529.2,9.41173577]
[1749914444065,2.08017,2529.3,2529.2,2.33489577]
[1749914444268,0.79062,2528.6,2528.5,24.064]
[1749914444456,0.79062,2528.6,2528.5,24.85461]
[1749914445363,0.79058,2528.7,2528.6,0.79056]
[1749914445562,0.79058,2528.7,2528.6,3.99836]
[1749914446169,0.00593577,2528.8,2528.7,0.79056]
[1749914446768,0.00593577,2528.8,2528.7,1.44366]
[1749914448370,0.79044,2529.1,2529.0,0.79043]
[1749914448567,0.79044,2529.1,2529.0,28.11323]
[1749914453074,0.79044,2529.1,2529.0,27.3228]
[1749914453275,2.10504,2529.1,2529.0,27.3228]
[1749914453870,2.10504,2529.1,2529.0,3.2078]
[1749914454067,1.3146,2529.1,2528.7,3.2078]
[1749914454273,0.79053,2528.8,2528.7,9.4058]
[1749914454568,0.79053,2528.8,2528.7,33.5208]
[1749914455077,0.79053,2528.8,2528.7,34.31136]
[1749914455369,2.74303,2528.8,2528.7,33.5208]
[1749914457276,2.74303,2528.8,2528.7,33.5188]
[1749914457772,2.74303,2528.8,2528.7,30.311]
[1749914458671,2.74303,2528.8,2528.7,30.309]
[1749914459877,0.79062,2528.5,2528.4,1.43582]
[1749914460078,0.79062,2528.5,2528.4,31.09862]
[1749914460776,0.79061,2528.6,2528.5,0.79059]
[1749914463775,0.79062,2528.5,2528.4,6.98863]
[1749914463980,0.79062,2528.5,2528.4,31.08263]
[1749914466987,0.6836,2528.8,2528.4,30.292]
[1749914467287,0.79057,2528.7,2528.6,0.79056]
[1749914467489,2.05727,2528.7,2528.6,24.87956]
[1749914469386,2.05727,2528.7,2528.6,24.089]
[1749914469587,2.05727,2528.7,2528.6,24.87959]
[1749914469884,1.2667,2528.7,2528.6,24.87959]
[1749914470089,0.79056,2528.7,2528.6,24.87959]
[1749914470286,1.47413,2528.8,2528.7,0.79056]
[1749914470490,0.6836,2528.8,2528.7,0.79056]
[1749914470890,1.47413,2528.8,2528.7,0.79056]
[1749914471486,3.2078,2529.3,2528.6,27.9217]
[1749914471689,0.644,2529.3,2529.2,0.7904]
[1749914471895,2.0061,2529.5,2529.3,0.79034]
[1749914472195,0.79035,2529.4,2529.3,0.79034]
[1749914473196,0.79037,2529.3,2529.2,24.87438]
[1749914473392,2.15676,2529.4,2529.3,0.79037]
[1749914474687,0.79037,2529.3,2529.2,24.87439]
[1749914475900,0.7904,2529.2,2529.1,3.2078]
[1749914476196,0.79053,2528.9,2528.8,3.99831]
[1749914476391,0.79053,2528.9,2528.8,34.27631]
[1749914476598,0.79048,2529.0,2528.9,0.79047]
[1749914476988,2.15138,2529.0,2528.9,0.79047]
[1749914478489,1.45144,2529.1,2529.0,0.79046]
[1749914478693,1.45144,2529.1,2528.8,33.4858]
[1749914478694,0.79049,2529.0,2528.9,0.79047]
[1749914479493,0.79049,2528.9,2528.8,10.2053]
[1749914479690,0.79049,2528.9,2528.8,33.4828]
[1749914480001,0.79049,2528.9,2528.8,34.27333]
[1749914480785,1.3023,2529.0,2528.9,0.79049]
[1749914480786,2.09277,2529.0,2528.9,0.79049]
[1749914480986,1.45145,2529.1,2529.0,0.79046]
[1749914481188,1.45145,2529.1,2529.0,24.068]
[1749914481392,0.661,2529.1,2529.0,30.275]
[1749914481794,2.80053,2529.1,2529.0,30.275]
[1749914484398,2.80053,2529.1,2529.0,31.06546]
[1749914486103,2.0101,2529.1,2529.0,31.06546]
[1749914486296,1.45143,2529.1,2529.0,31.06546]
[1749914486493,5.81519,2529.5,2529.3,0.79037]
[1749914486494,1.2541,2529.4,2529.3,0.79037]
[1749914486803,0.79033,2529.5,2529.4,0.7903]
[1749914487903,1.43536,2529.7,2529.6,0.79028]
[1749914488102,0.6451,2529.7,2529.6,24.85828]
[1749914488299,4.4619,2529.8,2529.7,0.79024]
[1749914488805,5.25211,2529.8,2529.7,0.79024]
[1749914489802,0.79024,2529.7,2529.6,24.85826]
[1749914490006,0.79024,2529.7,2529.6,24.068]
[1749914490407,0.79024,2529.7,2529.6,24.85827]
[1749914491404,5.25214,2529.8,2529.7,0.79024]
[1749914491800,3.99804,2529.8,2529.7,0.79024]
[1749914492209,5.1705,2530.1,2529.9,0.79017]
[1749914492508,0.79018,2530.0,2529.9,24.85617]
[1749914492905,0.79018,2530.0,2529.9,25.54297]
[1749914493106,0.79018,2530.0,2529.9,24.7528]
[1749914493606,2.09478,2530.0,2529.9,25.54298]
[1749914494007,2.09478,2530.0,2529.9,24.7528]
[1749914495801,2.09478,2530.0,2529.9,28.75078]
[1749914496806,2.09478,2530.0,2529.9,27.9606]
[1749914499101,2.09478,2530.0,2529.9,3.2078]
[1749914499308,0.79021,2529.8,2529.7,0.00593577]
[1749914499706,1.81327178,2529.8,2529.7,0.00593577]
[1749914508315,0.79021,2529.8,2529.7,0.00593577]
[1749914509308,1.81448944,2529.8,2529.7,0.00593577]
[1749914513619,1.81448944,2529.8,2529.7,3.21373577]
[1749914513620,0.79021,2529.8,2529.7,3.21373577]
[1749914517223,0.79021,2529.8,2529.7,0.00593577]
[1749914519525,0.79021,2529.8,2529.7,1.46017577]
[1749914521426,3.2078,2530.4,2529.7,10.07473577]
[1749914521621,0.79012,2530.2,2530.1,0.7901]
[1749914521828,1.81628554,2530.2,2530.1,0.7901]
[1749914522024,1.9713,2530.3,2530.2,0.79009]
[1749914522218,0.79006,2530.3,2530.2,0.79009]
[1749914522726,0.79006,2530.3,2530.2,1.45039]
[1749914522923,1.2759,2530.5,2530.2,0.6603]
[1749914523225,1.43253,2530.5,2530.4,0.79003]
[1749914523521,0.79006,2530.4,2530.3,0.79004]
[1749914524930,0.79006,2530.4,2530.3,24.85104]
[1749914525228,0.79009,2530.2,2530.1,3.2078]
[1749914525431,0.79015,2530.0,2529.9,30.265]
[1749914525628,0.79015,2530.0,2529.9,30.28]
[1749914526232,0.79015,2530.0,2529.9,6.197]
[1749914527632,0.79021,2529.8,2529.7,3.21373577]
[1749914529538,0.79021,2529.8,2529.7,3.21373577]
[1749914531435,0.79021,2529.8,2529.7,4.00397577]
[1749914531631,0.79021,2529.8,2529.7,3.21373577]
[1749914531833,1.326,2530.0,2529.7,4.00397577]
[1749914532040,0.79021,2529.8,2529.7,4.00397577]
[1749914537240,0.79021,2529.8,2529.7,3.21373577]
[1749914538129,1.46131,2529.8,2529.7,3.21373577]
[1749914540040,0.79031,2529.5,2529.4,3.2078]
[1749914547147,3.28975,2529.6,2529.3,3.2078]
[1749914547349,2.71864,2529.4,2529.3,3.99817]
[1749914550151,2.71864,2529.4,2529.3,3.2078]
[1749914551750,0.79037,2529.3,2529.2,0.00593577]
[1749914551947,0.79053,2528.8,2528.7,33.3198]
[1749914552140,3.52026683,2528.8,2527.4,0.31902716]
[1749914552343,3.2078,2528.1,2527.3,3.2078]
[1749914552542,0.79091,2527.6,2527.3,4.5742]
[1749914552743,3.2078,2527.8,2527.4,71.199]
[1749914552947,0.00593577,2527.9,2527.8,0.79084]
[1749914553153,0.79675577,2527.9,2527.6,3.2078]
[1749914553453,0.79675577,2527.9,2527.8,0.79084]
[1749914553751,0.79675577,2527.9,2527.8,24.98484]
[1749914554254,0.00593577,2527.9,2527.8,24.98484]
[1749914555046,0.79674577,2527.9,2527.8,24.98484]
[1749914555348,0.00593577,2527.9,2527.8,24.98484]
[1749914555949,0.00593577,2527.9,2527.8,36.19384]
[1749914556150,0.00593577,2527.9,2527.8,37.54954]
[1749914556954,0.00593577,2527.9,2527.8,47.79841881]
[1749914557252,0.00593577,2527.9,2527.8,37.54954]
[1749914557446,0.00593577,2527.9,2527.8,32.54954]
[1749914559254,0.00593577,2527.9,2527.8,31.19384]
[1749914561258,0.00593577,2527.9,2527.8,32.54314]
[1749914563259,0.00593577,2527.9,2527.8,8.34914]
[1749914563457,0.00593577,2527.9,2527.8,31.16684]
[1749914563857,0.79674577,2527.9,2527.8,31.16684]
[1749914564261,0.79674577,2527.9,2527.8,6.209]
[1749914564463,0.79674577,2527.9,2527.8,30.373]
[1749914565352,0.79674577,2527.9,2527.8,31.16384]
[1749914567169,0.79674577,2527.9,2527.8,6.99984]
[1749914567474,0.79674577,2527.9,2527.8,30.376]
[1749914568075,0.79674577,2527.9,2527.8,31.16684]
[1749914568275,0.79084,2527.8,2527.7,0.79086]
[1749914568572,2.08994,2527.8,2527.7,24.95686]
[1749914568778,1.2991,2527.8,2527.7,24.95686]
[1749914569078,2.08994,2527.8,2527.7,24.95686]
[1749914570477,1.2991,2527.8,2527.7,24.95686]
[1749914570677,2.08994,2527.8,2527.7,24.95686]
[1749914571470,2.73414,2527.8,2527.7,24.95686]
[1749914573083,0.6442,2527.8,2527.7,24.95686]
[1749914573982,1.43504,2527.8,2527.7,24.95686]
[1749914574377,2.81154,2527.8,2527.7,24.95686]
[1749914576779,2.81154,2527.8,2527.7,0.79086]
[1749914576985,0.79087,2527.7,2527.6,3.99868]
[1749914577187,2.08557,2527.7,2527.6,28.13368]
[1749914577785,0.7909,2527.6,2527.5,7.05192]
[1749914577974,0.79096,2527.5,2527.4,0.79094]
[1749914578284,0.79096,2527.4,2527.3,10.26570577]
[1749914578480,2.73426,2527.4,2527.3,34.40170577]
[1749914579477,2.73426,2527.4,2527.3,6.26693577]
[1749914579684,2.73426,2527.4,2527.3,31.19592577]
[1749914581790,1.9433,2527.4,2527.3,31.19592577]
[1749914582284,2.73426,2527.4,2527.3,31.19592577]
[1749914582593,0.79112,2526.9,2526.8,6.262]
[1749914582784,1.97758,2527.2,2526.7,0.79117]
[1749914582785,0.79117,2526.8,2526.7,0.79117]
[1749914583092,0.79117,2526.8,2526.5,6.262]
[1749914583093,0.79121,2526.6,2526.5,6.262]
[1749914583280,0.79121,2526.6,2526.5,30.421]
[1749914583686,2.04991,2526.6,2526.5,30.421]
[1749914583887,0.79126,2526.5,2526.4,0.79126]
[1749914584089,2.04996,2526.5,2526.4,24.94926]
[1749914584694,1.2587,2526.5,2526.4,24.156]
[1749914585184,2.04996,2526.5,2526.4,24.156]
[1749914585789,1.2587,2526.5,2526.4,24.94728]
[1749914585984,2.04995,2526.5,2526.4,24.94728]
[1749914586184,1.2587,2526.5,2526.4,24.94728]
[1749914586385,2.04995,2526.5,2526.4,24.94728]
[1749914586882,0.79128,2526.4,2526.3,6.26793577]
[1749914587086,2.07538,2526.4,2526.3,30.41693577]
[1749914587594,1.2841,2526.4,2526.3,31.20824577]
[1749914587892,2.07538,2526.4,2526.3,31.20824577]
[1749914588278,0.6234,2526.7,2526.5,0.79122]
[1749914588483,0.79121,2526.6,2526.5,24.145]
[1749914588892,2.14831,2526.6,2526.5,24.145]
[1749914589094,2.14831,2526.6,2526.5,24.93625]
[1749914589393,2.14831,2526.6,2526.5,24.145]
[1749914589585,2.14831,2526.6,2526.5,24.93625]
[1749914590485,1.3571,2526.6,2526.5,24.93625]
[1749914591184,2.14831,2526.6,2526.5,24.145]
[1749914593395,2.14831,2526.6,2526.5,24.93625]
[1749914593595,2.14831,2526.6,2526.5,24.145]
[1749914593791,1.3571,2526.6,2526.3,0.79722577]
[1749914593997,0.79125,2526.5,2526.4,24.134]
[1749914595399,0.79125,2526.5,2526.4,24.92527]
[1749914595590,0.79125,2526.5,2526.4,24.134]
[1749914595994,0.79128,2526.4,2526.3,0.00593577]
[1749914596293,0.79128,2526.4,2526.3,24.13093577]
[1749914596493,0.79128,2526.4,2526.3,0.00593577]
[1749914596888,2.06138,2526.4,2526.3,0.00593577]
[1749914597297,3.2078,2526.5,2526.4,0.79128]
[1749914597597,3.2078,2526.5,2526.3,0.00593577]
[1749914597894,3.99908,2526.5,2526.4,0.79128]
[1749914598297,0.79125,2526.5,2526.4,0.79128]
[1749914598496,0.79128,2526.4,2526.3,0.79721577]
[1749914600697,0.79128,2526.4,2526.3,0.00593577]
[1749914601095,1.46898,2526.4,2526.3,0.00593577]
[1749914601293,2.77618,2526.4,2526.3,0.00593577]
[1749914602194,0.79143,2525.9,2525.8,1.44334]
[1749914602394,0.79143,2526.0,2525.9,0.79142]
[1749914603298,0.79143,2525.9,2525.8,0.6519]
[1749914603603,0.79146,2525.8,2525.7,0.00593577]
[1749914604001,2.04846,2525.8,2525.7,0.00593577]
[1749914604298,1.257,2525.8,2525.2,0.6365]
[1749914604602,0.79158,2525.5,2525.4,0.79159]
[1749914604798,1.257,2525.7,2525.2,1.2948]
[1749914605100,3.2078,2525.6,2525.2,2.08644]
[1749914605295,1.257,2525.5,2525.2,1.30073577]
[1749914605600,0.79159,2525.4,2525.3,0.79162]
[1749914605794,2.04857,2525.5,2525.4,0.79159]
[1749914605994,2.04857,2525.5,2525.2,1.30073577]
[1749914605995,0.79157,2525.5,2525.2,1.30073577]
[1749914606191,0.79159,2525.5,2525.2,25.44773577]
[1749914606403,1.3025,2525.8,2525.7,0.7915]
[1749914607204,1.3025,2525.8,2525.2,25.44773577]
[1749914607597,3.2812,2525.8,2525.3,0.79162]
[1749914607902,0.79159,2525.4,2525.3,0.79162]
[1749914608298,0.79159,2525.4,2525.2,25.44773577]
[1749914608299,0.79154,2525.6,2525.5,0.79155]
[1749914608695,0.79156,2525.5,2525.4,0.79157]
[1749914608894,1.3025,2525.7,2525.2,25.44773577]
[1749914609090,1.3025,2525.7,2525.2,1.30073577]
[1749914609290,0.79158,2525.5,2525.2,25.45573577]
[1749914609489,0.79155,2525.6,2525.5,0.79155]
[1749914609695,0.79155,2525.6,2525.2,25.45573577]
[1749914609892,0.79156,2525.5,2525.4,0.79157]
[1749914610402,0.79156,2525.5,2525.2,26.74833577]
[1749914610403,0.79155,2525.6,2525.5,0.79156]
[1749914611206,0.79154,2525.6,2525.5,0.79154]
[1749914611398,10.7172,2525.9,2525.3,1.97906]
[1749914611598,0.79151,2525.7,2525.3,1.97906]
[1749914611896,4.4842,2525.9,2525.3,1.2926]
[1749914612101,0.79154,2525.6,2525.5,0.79154]
[1749914612600,0.79158,2525.5,2525.4,0.79158]
[1749914613501,0.79162,2525.3,2525.2,2.09236577]
[1749914613702,0.79161,2525.4,2525.3,0.7916]
[1749914614305,3.2078,2525.6,2525.4,0.79157]
[1749914614306,0.79158,2525.5,2525.4,0.79157]
[1749914614505,4.4842,2525.9,2525.3,1.97905]
[1749914614716,0.79152,2525.7,2525.6,0.79149]
[1749914615304,3.99925,2525.9,2525.8,0.79146]
[1749914615513,3.2078,2525.9,2525.8,0.79146]
[1749914615905,3.99923,2525.9,2525.8,0.79146]
[1749914617307,3.2078,2525.9,2525.8,0.79146]
[1749914617512,3.99923,2525.9,2525.8,0.79146]
[1749914617698,3.2078,2525.9,2525.8,0.79146]
[1749914618304,3.99923,2525.9,2525.8,0.79146]
[1749914618905,3.2078,2525.9,2525.8,0.79146]
[1749914621203,3.21373577,2526.2,2526.1,0.79137]
[1749914621405,0.00593577,2526.2,2526.1,31.17837]
[1749914622303,0.00593577,2526.2,2526.1,31.81907]
[1749914624708,1.3339,2526.6,2526.5,0.79125]
[1749914625012,0.79121,2526.7,2526.6,0.7912]
[1749914625214,2.08291,2526.7,2526.6,0.7912]
[1749914625507,1.2917,2526.7,2526.4,24.161]
[1749914625813,0.79125,2526.5,2526.4,24.16]
[1749914626410,0.79128,2526.4,2526.3,6.242]
[1749914626615,1.42828,2526.4,2526.3,30.403]
[1749914627010,0.637,2526.4,2526.1,6.242]
[1749914627210,3.99914,2526.2,2526.1,6.242]
[1749914627405,0.79137,2526.1,2526.0,24.16]
[1749914627714,2.13017,2526.1,2526.0,24.16]
[1749914628315,2.13017,2526.1,2526.0,24.9514]
[1749914628518,0.79142,2526.0,2525.9,0.79142]
[1749914628711,2.13022,2526.0,2525.9,0.79142]
[1749914629213,1.3388,2526.0,2525.8,6.242]
[1749914629410,2.13023,2526.0,2525.9,0.79143]
[1749914629719,1.3388,2526.0,2525.9,0.79143]
[1749914629918,3.99916,2526.2,2526.1,0.79137]
[1749914630119,0.79136,2526.2,2526.1,0.79137]
[1749914630619,1.3388,2526.3,2525.8,30.402]
[1749914630919,0.79143,2526.0,2525.9,0.79142]
[1749914631314,0.79143,2526.0,2525.8,6.242]
[1749914631315,0.79143,2525.9,2525.8,30.402]
[1749914631619,2.16383,2525.9,2525.8,31.19346]
[1749914631816,1.3724,2525.9,2525.8,31.19346]
[1749914632019,3.2078,2526.2,2526.1,0.79137]
[1749914632223,0.79138,2526.1,2526.0,0.79138]
[1749914632917,0.7914,2526.0,2525.9,24.159]
[1749914633221,2.1638,2526.0,2525.9,24.159]
[1749914634419,2.1638,2526.0,2525.9,24.95043]
[1749914634918,0.79125,2526.6,2526.5,0.79123]
[1749914635120,0.79125,2526.5,2526.4,28.16306]
[1749914635412,0.79125,2526.5,2526.4,24.97125]
[1749914635620,0.79124,2526.6,2526.5,0.79124]
[1749914635812,1.3501,2526.6,2526.5,0.79125]
[1749914636220,0.00593577,2526.8,2526.5,1.97811]
[1749914636518,0.00593577,2526.8,2526.7,0.79118]
[1749914636819,0.00593577,2526.8,2526.7,31.21818]
[1749914639114,0.00593577,2526.8,2526.7,0.79118]
[1749914639320,0.00593577,2526.8,2526.7,31.21118]
[1749914640520,0.79708577,2526.8,2526.7,31.21118]
[1749914641620,0.79118,2526.7,2526.6,7.67991]
[1749914641820,0.79118,2526.7,2526.6,31.84691]
[1749914641821,2.78488,2526.7,2526.6,31.84691]
[1749914642021,1.9937,2526.7,2526.6,31.84691]
[1749914642323,2.78488,2526.7,2526.6,31.84691]
[1749914643718,1.9937,2526.7,2526.6,31.84691]
[1749914644124,0.00593577,2526.8,2526.7,0.79118]
[1749914644612,0.79708577,2526.8,2526.7,0.79118]
[1749914645025,0.00593577,2526.8,2526.7,0.79118]
[1749914645219,0.79708577,2526.8,2526.7,0.79118]
[1749914645527,0.79121,2526.6,2526.5,6.24593577]
[1749914645714,0.79121,2526.6,2526.5,31.20218577]
[1749914646215,0.79709577,2526.8,2526.7,0.79118]
[1749914646421,0.79709577,2526.8,2526.7,24.96218]
[1749914647017,0.79709577,2526.8,2526.7,24.171]
[1749914647222,2.14449577,2526.8,2526.7,24.171]
[1749914647621,2.14449577,2526.8,2526.7,24.96218]
[1749914648227,2.14449577,2526.8,2526.7,24.171]
[1749914648522,2.14449577,2526.8,2526.7,24.96218]
[1749914650125,2.14449577,2526.8,2526.7,24.171]
[1749914650823,2.14449577,2526.8,2526.7,24.96218]
[1749914651018,1.35333577,2526.8,2526.7,24.96218]
[1749914651226,2.14448577,2526.8,2526.7,24.96218]
[1749914653430,2.14448577,2526.8,2526.7,24.171]
[1749914653626,2.14448577,2526.8,2526.7,24.156]
[1749914656722,2.14448577,2526.8,2526.7,24.94718]
[1749914657123,0.00593577,2526.8,2526.7,24.94718]
[1749914657531,0.79708577,2526.8,2526.7,24.94718]
[1749914658029,0.00593577,2526.8,2526.7,24.94718]
[1749914658225,0.79708577,2526.8,2526.7,24.94718]
[1749914661233,2.10498577,2526.8,2526.7,24.94718]
[1749914661732,2.10498577,2526.8,2526.7,24.156]
[1749914662033,2.10498577,2526.8,2526.7,24.94718]
[1749914663031,0.79121,2526.6,2526.5,1.43325577]
[1749914663330,0.79121,2526.6,2526.5,31.16115577]
[1749914663837,2.09911,2526.6,2526.5,31.16115577]
[1749914666239,1.3079,2526.6,2526.5,31.16115577]
[1749914666533,2.09911,2526.6,2526.5,31.16115577]
[1749914669037,2.09911,2526.6,2526.5,6.24293577]
[1749914669235,5.30691,2526.6,2526.5,24.13593577]
[1749914669432,6.33568507,2526.6,2526.5,0.00593577]
[1749914669633,0.7914,2526.0,2525.9,10.16936939]
[1749914669836,0.7914,2526.0,2525.9,31.16541]
[1749914670934,0.7914,2526.0,2525.9,30.374]
[1749914671240,0.7914,2526.0,2525.9,31.16543]
[1749914671538,0.7914,2526.0,2525.9,30.374]
[1749914671740,0.79146,2525.9,2525.8,6.237]
[1749914672039,0.79146,2525.9,2525.8,31.16645]
[1749914672226,0.79146,2525.9,2525.8,30.375]
[1749914673140,0.79146,2525.9,2525.8,0.79146]
[1749914673637,0.79146,2525.9,2525.8,24.92646]
[1749914674039,0.79146,2525.9,2525.8,24.135]
[1749914674939,2.1278,2526.0,2525.9,0.79143]
[1749914675238,0.7914,2526.1,2526.0,0.79139]
[1749914675432,0.7914,2526.1,2526.0,24.92639]
[1749914675837,1.2518,2526.3,2526.0,27.3428]
[1749914676038,3.2078,2526.7,2526.4,0.79124]
[1749914676039,0.79126,2526.5,2526.4,0.79124]
[1749914676239,0.79126,2526.5,2526.4,24.93524]
[1749914677045,0.79125,2526.5,2526.4,24.93525]
[1749914678143,1.45924,2526.6,2526.5,0.79125]
[1749914678442,5.34391,2526.7,2526.6,0.79121]